lending/lending_fUSD_20250121
["ID","MTS","AMOUNT","RATE_DAILY","PERIOD"]
[349874458,1737473454011,-500.0,0.00020689,2]
[349874459,1737473454028,-500.0,0.00020689,2]
[349874460,1737473454042,-500.0,0.00020689,2]
[349874461,1737473454053,-500.0,0.00020689,2]
[349874462,1737473454065,-500.0,0.00020689,2]
[349874463,1737473454076,-607.2,0.00020689,2]
[349874464,1737473454088,-500.0,0.00020689,2]
[349874465,1737473454099,-500.0,0.00020689,2]
[349874466,1737473454109,-500.0,0.00020689,2]
[349874467,1737473454120,-500.0,0.00020689,2]
[349874468,1737473454130,-500.0,0.00020689,2]
[349874469,1737473454141,-500.0,0.00020689,2]
[349874470,1737473454152,-500.0,0.00020689,2]
[349874471,1737473454163,-500.0,0.00020689,2]
[349874472,1737473454175,-500.0,0.00020689,2]
[349874473,1737473454187,-500.0,0.00020689,2]
[349874474,1737473454197,-500.0,0.00020689,2]
[349874475,1737473454207,-500.0,0.00020689,2]
[349874476,1737473454217,-500.0,0.00020689,2]
[349874477,1737473454226,-500.0,0.00020689,2]
[349874478,1737473454236,-500.0,0.00020689,2]
[349874479,1737473454246,-500.0,0.00020689,2]
[349874480,1737473454256,-500.0,0.00020689,2]
[349874481,1737473454266,-500.0,0.00020689,2]
[349874482,1737473454282,-500.0,0.00020689,2]
[349874483,1737473454292,-500.0,0.00020689,2]
[349874484,1737473454302,-343.81352236,0.00020689,2]
[349874485,1737473454312,-500.0,0.00020689,2]
[349874486,1737473454322,-500.0,0.00020689,2]
[349874487,1737473454332,-500.0,0.00020689,2]
[349874488,1737473454342,-500.0,0.00020689,2]
[349874489,1737473454353,-500.0,0.00020689,2]
[349874490,1737473454362,-500.0,0.00020689,2]
[349874491,1737473454372,-600.6,0.00020689,2]
[349874492,1737473454382,-500.0,0.00020689,2]
[349874493,1737473454392,-500.0,0.00020689,2]
[349874494,1737473454402,-500.0,0.00020689,2]
[349874495,1737473454412,-500.0,0.00020689,2]
[349874496,1737473454422,-500.0,0.00020689,2]
[349874497,1737473454432,-500.0,0.00020689,2]
[349874498,1737473454442,-500.0,0.00020689,2]
[349874499,1737473454451,-508.79,0.00020689,2]
[349874500,1737473454461,-500.0,0.00020689,2]
[349874501,1737473454471,-500.0,0.00020689,2]
[349874502,1737473454481,-500.0,0.00020689,2]
[349874503,1737473454490,-500.0,0.00020689,2]
[349874504,1737473454500,-570.53,0.00020689,2]
[349874505,1737473454510,-500.0,0.00020689,2]
[349874506,1737473454520,-500.0,0.00020689,2]
[349874507,1737473454538,-500.0,0.00020689,2]
[349874508,1737473454548,-500.0,0.00020689,2]
[349874509,1737473454558,-500.0,0.00020689,2]
[349874510,1737473454567,-500.0,0.00020689,2]
[349874511,1737473454577,-561.49,0.00020689,2]
[349874512,1737473454587,-1015.68,0.00020689,2]
[349874513,1737473454742,-500.0,0.00020689,2]
[349874514,1737473454753,-500.0,0.00020689,2]
[349874515,1737473454763,-500.0,0.00020689,2]
[349874516,1737473454774,-500.0,0.00020689,2]
[349874517,1737473454787,-500.0,0.00020689,2]
[349874518,1737473454797,-500.0,0.00020689,2]
[349874519,1737473454807,-500.0,0.00020689,2]
[349874520,1737473454817,-500.0,0.00020689,2]
[349874521,1737473454828,-180.362628,0.00020689,2]
[349874522,1737473454838,-151.0,0.00020689,2]
[349874523,1737473454849,-151.0,0.00020689,2]
[349874524,1737473454859,-2292.673232,0.00020689,2]
[349874525,1737473454869,-151.0,0.00020689,2]
[349874526,1737473454879,-2292.673232,0.00020689,2]
[349874527,1737473454889,-210.048319,0.00020689,2]
[349874528,1737473454899,-151.0,0.00020689,2]
[349874529,1737473454908,-500.0,0.0002069,2]
[349874530,1737473454918,-500.0,0.0002069,2]
[349874531,1737473454928,-519.55,0.0002069,2]
[349874532,1737473454938,-500.0,0.0002069,2]
[349874533,1737473454948,-500.0,0.0002069,2]
[349874534,1737473454958,-500.0,0.0002069,2]
[349874535,1737473454968,-500.0,0.0002069,2]
[349874536,1737473454978,-500.0,0.0002069,2]
[349874537,1737473454988,-159.40303725,0.0002069,2]
[349874538,1737473454998,-254.53454176,0.0002069,2]
[349874539,1737473455009,-500.0,0.0002069,2]
[349874540,1737473455021,-500.0,0.0002069,2]
[349874541,1737473455035,-500.0,0.0002069,2]
[349874542,1737473455045,-150.0,0.00020698,2]
[349874543,1737473455055,-1654.0,0.000207,2]
[349874544,1737473455065,-150.0,0.00020722,2]
[349874545,1737473455076,-5128.38246902,0.00020733,2]
[349874546,1737473455086,-2520.56,0.00020743,2]
[349874547,1737473455098,-150.0,0.00020762,2]
[349874548,1737473455108,-16586.79250611,0.00020787,2]
[349874549,1737473455118,-5000.0,0.00020792,2]
[349874550,1737473455128,-366.11346198,0.00020795,2]
[349874551,1737473455138,-297.62597625,0.00020796,2]
[349874552,1737473455148,-16586.79250611,0.00020798,2]
[349874553,1737473455157,-5000.0,0.000208,2]
[349874554,1737473455168,-364050.15822356,0.000208,2]
[349874555,1737473455178,-150.0,0.000208,2]
[349874556,1737473455187,-297.62597625,0.00020812,2]
[349874557,1737473455197,-1060.23,0.00020821,2]
[349874558,1737473455207,-798.17,0.00020821,2]
[349874559,1737473455218,-942.98,0.00020821,2]
[349874560,1737473455228,-2259.34,0.00020821,2]
[349874561,1737473455238,-594.95,0.00020821,2]
[349874562,1737473455247,-567.36,0.00020821,2]
[349874563,1737473455257,-2519.97,0.00020821,2]
[349874564,1737473455266,-1308.03,0.00020821,2]
[349874565,1737473455280,-2381.77,0.00020821,2]
[349874566,1737473455289,-500.0,0.00020821,2]
[349874567,1737473455299,-1433.61,0.00020821,2]
[349874568,1737473455309,-1212.32,0.00020821,2]
[349874569,1737473455318,-2759.2,0.00020821,2]
[349874570,1737473455328,-3089.35,0.00020821,2]
[349874571,1737473455338,-1366.21,0.00020821,2]
[349874572,1737473455347,-1044.2,0.00020821,2]
[349874573,1737473455357,-500.0,0.00020821,2]
[349874574,1737473455367,-2875.08,0.00020821,2]
[349874575,1737473455376,-500.0,0.00020821,2]
[349874576,1737473455386,-500.0,0.00020821,2]
[349874577,1737473455396,-500.0,0.00020821,2]
[349874578,1737473455406,-500.0,0.00020821,2]
[349874579,1737473455415,-500.0,0.00020821,2]
[349874580,1737473455425,-472.27246413,0.00020821,2]
[349874581,1737473455434,-500.0,0.00020821,2]
[349874582,1737473455443,-956.78,0.00020821,2]
[349874583,1737473455453,-500.0,0.00020821,2]
[349874584,1737473455462,-568.62,0.00020821,2]
[349874585,1737473455472,-2749.15,0.00020821,2]
[349874586,1737473455481,-5000.0,0.00020828,2]
[349874587,1737473455491,-500.0,0.00020832,2]
[349874588,1737473455500,-366.11346198,0.00020835,2]
[349874589,1737473455510,-5000.0,0.00020836,2]
[349874590,1737473455519,-363.77945564,0.00020843,2]
[349874591,1737473455531,-200.0,0.00020843,2]
[349874592,1737473455540,-462.35,0.00020848,2]
[349874593,1737473455550,-150.0,0.00020849,2]
[349874594,1737473455560,-16586.79250611,0.00020853,2]
[349874595,1737473455570,-366.11346198,0.00020863,2]
[349874596,1737473455579,-500.0,0.00020863,2]
[349874597,1737473455590,-2186.55,0.00020863,2]
[349874598,1737473455600,-1085.09,0.00020863,2]
[349874599,1737473455610,-2730.73,0.00020863,2]
[349874600,1737473455619,-695.234373,0.00020863,2]
[349874601,1737473455629,-717.16,0.00020863,2]
[349874602,1737473455639,-1048.01,0.00020863,2]
[349874603,1737473455648,-643.95,0.00020863,2]
[349874604,1737473455658,-2281.5,0.00020863,2]
[349874605,1737473455667,-500.0,0.00020863,2]
[349874606,1737473455677,-3969.3,0.00020863,2]
[349874607,1737473455686,-216.597152,0.00020863,2]
[349874608,1737473455695,-151.0,0.00020863,2]
[349874609,1737473455705,-690.17,0.00020863,2]
[349874610,1737473455714,-707.287074,0.00020863,2]
[349874611,1737473455724,-500.0,0.00020863,2]
[349874612,1737473455734,-151.0,0.00020863,2]
[349874613,1737473455743,-1201.35,0.00020863,2]
[349874614,1737473455753,-835.588947,0.00020863,2]
[349874615,1737473455762,-835.588947,0.00020863,2]
[349874616,1737473455771,-500.0,0.00020863,2]
[349874617,1737473455784,-1823.94,0.00020863,2]
[349874618,1737473455793,-1013.43,0.00020863,2]
[349874619,1737473455803,-151.0,0.00020863,2]
[349874620,1737473455812,-234.095591,0.00020863,2]
[349874621,1737473455822,-1273.27,0.00020863,2]
[349874622,1737473455832,-3423.41,0.00020863,2]
[349874623,1737473455841,-2649.6,0.00020863,2]
[349874624,1737473455850,-3456.73,0.00020863,2]
[349874625,1737473455861,-500.0,0.00020863,2]
[349874626,1737473455870,-1434.78,0.00020863,2]
[349874627,1737473455880,-3690.04,0.00020863,2]
[349874628,1737473455889,-7080.07,0.00020863,2]
[349874629,1737473455899,-1249.4,0.00020863,2]
[349874630,1737473455908,-1727.92,0.00020863,2]
[349874631,1737473455924,-807.0,0.00020863,2]
[349874632,1737473455941,-1972.89,0.00020863,2]
[349874633,1737473455954,-500.0,0.00020863,2]
[349874634,1737473455971,-872.86,0.00020863,2]
[349874635,1737473455986,-1915.51,0.00020863,2]
[349874636,1737473456002,-2778.0,0.00020863,2]
[349874637,1737473456020,-1925.43,0.00020863,2]
[349874638,1737473456035,-1775.46,0.00020863,2]
[349874639,1737473456052,-2102.1,0.00020863,7]
[349874640,1737473456067,-2102.1,0.00020863,7]
[349874641,1737473456082,-1505.0,0.00020864,2]
[349874642,1737473456099,-3276.3271,0.00020864,2]
[349874643,1737473456114,-5988.9222,0.00020864,2]
[349874644,1737473456130,-200.0,0.0002087,2]
[349874645,1737473456145,-200.0,0.00020873,2]
[349874646,1737473456159,-2110.78,0.00020878,2]
[349874647,1737473456175,-16586.79250611,0.00020879,2]
[349874648,1737473456189,-5772.69165277,0.00020883,2]
[349874649,1737473456203,-150.0,0.00020885,2]
[349874650,1737473456215,-16586.79250611,0.0002089,2]
[349874651,1737473456233,-297.62597625,0.00020891,2]
[349874652,1737473456245,-517.4,0.00020895,2]
[349874653,1737473456256,-297.62597625,0.00020899,2]
[349874654,1737473456271,-500.0,0.000209,2]
[349874655,1737473456287,-230.05443607,0.000209,2]
[349874656,1737473456299,-5128.38246902,0.000209,2]
[349874657,1737473456312,-1000.0,0.000209,2]
[349874658,1737473456326,-255.2,0.000209,2]
[349874659,1737473456339,-366.11346198,0.00020905,2]
[349874660,1737473456352,-200.0,0.00020916,2]
[349874661,1737473456364,-366.11346198,0.00020937,2]
[349874662,1737473456377,-2522.94,0.00020942,2]
[349874663,1737473456390,-2500.0,0.00020943,2]
[349874664,1737473456402,-297.62597625,0.00020949,2]
[349874665,1737473456415,-5000.0,0.00020954,2]
[349874666,1737473456427,-1185.29,0.00020961,2]
[349874667,1737473456440,-1037.37,0.00020961,2]
[349874668,1737473456453,-1464.7,0.00020961,2]
[349874669,1737473456465,-2048.12,0.00020961,2]
[349874670,1737473456478,-1012.72,0.00020961,2]
[349874671,1737473456491,-1761.97,0.00020961,2]
[349874672,1737473456503,-1200.93,0.00020961,2]
[349874673,1737473456517,-3170.05,0.00020961,2]
[349874674,1737473456531,-1945.14,0.00020961,2]
[349874675,1737473456544,-1359.14,0.00020961,2]
[349874676,1737473456556,-2481.22,0.00020961,2]
[349874677,1737473456568,-500.0,0.00020961,2]
[349874678,1737473456581,-759.9,0.00020961,2]
[349874679,1737473456594,-5664.97,0.00020961,2]
[349874680,1737473456606,-704.48,0.00020961,2]
[349874681,1737473456619,-500.0,0.00020961,2]
[349874682,1737473456632,-500.0,0.00020961,2]
[349874683,1737473456644,-1656.29,0.00020961,2]
[349874684,1737473456657,-5088.9,0.00020961,2]
[349874685,1737473456669,-500.0,0.00020961,2]
[349874686,1737473456681,-500.0,0.00020962,2]
[349874687,1737473456694,-500.0,0.00020962,2]
[349874688,1737473456706,-500.0,0.00020962,2]
[349874689,1737473456721,-500.0,0.00020962,2]
[349874690,1737473456733,-500.0,0.00020962,2]
[349874691,1737473456746,-500.0,0.00020962,2]
[349874692,1737473456759,-500.0,0.00020962,2]
[349874693,1737473456771,-500.0,0.00020962,2]
[349874694,1737473456786,-500.0,0.00020962,2]
[349874695,1737473456798,-500.0,0.00020962,2]
[349874696,1737473456811,-500.0,0.00020962,2]
[349874697,1737473456824,-503.47419394,0.00020962,2]
[349874698,1737473456837,-500.0,0.00020962,2]
[349874699,1737473456850,-500.0,0.00020962,2]
[349874700,1737473456863,-500.0,0.00020962,2]
[349874701,1737473456876,-500.0,0.00020962,2]
[349874702,1737473456889,-500.0,0.00020962,2]
[349874703,1737473456902,-394.42545405,0.00020962,2]
[349874704,1737473456915,-500.0,0.00020962,2]
[349874705,1737473456928,-500.0,0.00020962,2]
[349874706,1737473456939,-500.0,0.00020962,2]
[349874707,1737473456952,-525.27108663,0.00020962,2]
[349874708,1737473456965,-500.0,0.00020962,2]
[349874709,1737473456978,-500.0,0.00020962,2]
[349874710,1737473456990,-500.0,0.00020962,2]
[349874711,1737473457004,-500.0,0.00020962,2]
[349874712,1737473457020,-500.0,0.00020962,2]
[349874713,1737473457035,-500.0,0.00020962,2]
[349874714,1737473457048,-500.0,0.00020962,2]
[349874715,1737473457062,-500.0,0.00020962,2]
[349874716,1737473457075,-500.0,0.00020962,2]
[349874717,1737473457089,-500.0,0.00020962,2]
[349874718,1737473457102,-500.0,0.00020962,2]
[349874719,1737473457116,-500.0,0.00020962,2]
[349874720,1737473457130,-500.0,0.00020962,2]
[349874721,1737473457143,-500.0,0.00020962,2]
[349874722,1737473457157,-500.0,0.00020962,2]
[349874723,1737473457170,-538.76,0.00020962,2]
[349874724,1737473457183,-510.2917813,0.00020962,2]
[349874725,1737473457197,-439.17138335,0.00020962,2]
[349874726,1737473457211,-500.0,0.00020962,2]
[349874727,1737473457224,-500.0,0.00020962,2]
[349874728,1737473457237,-575.68,0.00020962,2]
[349874729,1737473457250,-500.0,0.00020962,2]
[349874730,1737473457263,-800.79,0.00020962,2]
[349874731,1737473457277,-500.0,0.00020962,2]
[349874732,1737473457291,-500.0,0.00020962,2]
[349874733,1737473457304,-500.0,0.00020962,2]
[349874734,1737473457318,-500.0,0.00020962,2]
[349874735,1737473457332,-500.0,0.00020962,2]
[349874736,1737473457345,-500.0,0.00020962,2]
[349874737,1737473457358,-500.0,0.00020962,2]
[349874738,1737473457370,-500.0,0.00020962,2]
[349874739,1737473457379,-500.0,0.00020962,2]
[349874740,1737473457389,-500.0,0.00020962,2]
[349874741,1737473457399,-500.0,0.00020962,2]
[349874742,1737473457409,-500.0,0.00020962,2]
[349874743,1737473457418,-500.0,0.00020962,2]
[349874744,1737473457428,-500.0,0.00020962,2]
[349874745,1737473457438,-1031.68,0.00020962,2]
[349874746,1737473457448,-500.0,0.00020962,2]
[349874747,1737473457690,-500.0,0.00020962,2]
[349874748,1737473457717,-500.0,0.00020962,2]
[349874749,1737473457728,-500.0,0.00020962,2]
[349874750,1737473457737,-500.0,0.00020962,2]
[349874751,1737473457747,-500.0,0.00020962,2]
[349874752,1737473457756,-500.0,0.00020962,2]
[349874753,1737473457765,-205.26655479,0.00020962,2]
[349874754,1737473457775,-500.0,0.00020962,2]
[349874755,1737473457786,-500.0,0.00020962,2]
[349874756,1737473457795,-500.0,0.00020962,2]
[349874757,1737473457805,-500.0,0.00020962,2]
[349874758,1737473457815,-500.0,0.00020962,2]
[349874759,1737473457825,-500.0,0.00020962,2]
[349874760,1737473457835,-500.0,0.00020962,2]
[349874761,1737473457844,-500.0,0.00020962,2]
[349874762,1737473457853,-500.0,0.00020962,2]
[349874763,1737473457863,-500.0,0.00020962,2]
[349874764,1737473457872,-500.0,0.00020962,2]
[349874765,1737473457881,-500.0,0.00020962,2]
[349874766,1737473457890,-500.0,0.00020962,2]
[349874767,1737473457899,-561.54,0.00020962,2]
[349874768,1737473457909,-500.0,0.00020962,2]
[349874769,1737473457918,-500.0,0.00020962,2]
[349874770,1737473457927,-500.0,0.00020962,2]
[349874771,1737473457937,-500.0,0.00020962,2]
[349874772,1737473457947,-500.0,0.00020962,2]
[349874773,1737473457957,-500.0,0.00020962,2]
[349874774,1737473457966,-500.0,0.00020962,2]
[349874775,1737473457975,-500.0,0.00020962,2]
[349874776,1737473457984,-500.0,0.00020962,2]
[349874777,1737473457994,-500.0,0.00020962,2]
[349874778,1737473458003,-530.08296691,0.00020962,2]
[349874779,1737473458014,-500.0,0.00020962,2]
[349874780,1737473458028,-500.0,0.00020962,2]
[349874781,1737473458038,-610.15440122,0.00020962,2]
[349874782,1737473458048,-500.0,0.00020962,2]
[349874783,1737473458058,-500.0,0.00020962,2]
[349874784,1737473458068,-500.0,0.00020962,2]
[349874785,1737473458077,-500.0,0.00020962,2]
[349874786,1737473458086,-500.0,0.00020962,2]
[349874787,1737473458098,-500.0,0.00020962,2]
[349874788,1737473458107,-500.0,0.00020962,2]
[349874789,1737473458117,-500.0,0.00020962,2]
[349874790,1737473458126,-500.0,0.00020962,2]
[349874791,1737473458135,-500.0,0.00020962,2]
[349874792,1737473458144,-500.0,0.00020962,2]
[349874793,1737473458154,-500.0,0.00020962,2]
[349874794,1737473458163,-500.0,0.00020962,2]
[349874795,1737473458172,-500.0,0.00020962,2]
[349874796,1737473458182,-349.92824833,0.00020962,2]
[349874797,1737473458192,-517.25659685,0.00020962,2]
[349874798,1737473458202,-500.0,0.00020962,2]
[349874799,1737473458212,-500.0,0.00020962,2]
[349874800,1737473458221,-500.0,0.00020962,2]
[349874801,1737473458231,-500.0,0.00020962,2]
[349874802,1737473458241,-500.0,0.00020962,2]
[349874803,1737473458251,-500.0,0.00020962,2]
[349874804,1737473458260,-500.0,0.00020962,2]
[349874805,1737473458269,-500.0,0.00020962,2]
[349874806,1737473458279,-500.0,0.00020962,2]
[349874807,1737473458289,-500.0,0.00020962,2]
[349874808,1737473458299,-500.0,0.00020962,2]
[349874809,1737473458308,-500.0,0.00020962,2]
[349874810,1737473458318,-500.0,0.00020962,2]
[349874811,1737473458327,-511.79261835,0.00020962,2]
[349874812,1737473458337,-500.0,0.00020962,2]
[349874813,1737473458347,-500.0,0.00020962,2]
[349874814,1737473458356,-500.0,0.00020962,2]
[349874815,1737473458366,-500.0,0.00020962,2]
[349874816,1737473458376,-500.0,0.00020962,2]
[349874817,1737473458385,-500.0,0.00020962,2]
[349874818,1737473458395,-500.0,0.00020962,2]
[349874819,1737473458404,-500.0,0.00020962,2]
[349874820,1737473458414,-500.0,0.00020962,2]
[349874821,1737473458424,-500.0,0.00020962,2]
[349874822,1737473458434,-500.0,0.00020962,2]
[349874823,1737473458443,-500.0,0.00020962,2]
[349874824,1737473458453,-506.03918656,0.00020962,2]
[349874825,1737473458463,-500.0,0.00020962,2]
[349874826,1737473458472,-500.0,0.00020962,2]
[349874827,1737473458483,-500.0,0.00020962,2]
[349874828,1737473458492,-551.68,0.00020962,2]
[349874829,1737473458502,-500.0,0.00020962,2]
[349874830,1737473458512,-500.0,0.00020962,2]
[349874831,1737473458521,-500.0,0.00020962,2]
[349874832,1737473458532,-743.99,0.00020962,2]
[349874833,1737473458542,-500.0,0.00020962,2]
[349874834,1737473458553,-1339.79,0.00020962,2]
[349874835,1737473458563,-507.21965337,0.00020962,2]
[349874836,1737473458573,-500.0,0.00020962,2]
[349874837,1737473458583,-500.0,0.00020962,2]
[349874838,1737473458593,-500.0,0.00020962,2]
[349874839,1737473458602,-700.87,0.00020962,2]
[349874840,1737473458612,-5941.55,0.00020962,2]
[349874841,1737473458622,-761.67,0.00020962,2]
[349874842,1737473458632,-793.56,0.00020962,2]
[349874843,1737473458641,-500.0,0.00020962,2]
[349874844,1737473458651,-500.0,0.00020962,2]
[349874845,1737473458661,-819.05,0.00020962,2]
[349874846,1737473458670,-500.0,0.00020962,2]
[349874847,1737473458679,-1623.42,0.00020962,2]
[349874848,1737473458689,-838.55,0.00020962,2]
[349874849,1737473458698,-500.0,0.00020962,2]
[349874850,1737473458707,-782.4,0.00020962,2]
[349874851,1737473458716,-500.0,0.00020962,2]
[349874852,1737473458725,-500.0,0.00020962,2]
[349874853,1737473458735,-691.14,0.00020962,2]
[349874854,1737473458744,-805.7,0.00020962,2]
[349874855,1737473458754,-878.93,0.00020962,2]
[349874856,1737473458763,-696.04,0.00020962,2]
[349874857,1737473458773,-1085.81,0.00020962,2]
[349874858,1737473458784,-500.0,0.00020962,2]
[349874859,1737473458794,-702.89,0.00020962,2]
[349874860,1737473458803,-708.73,0.00020962,2]
[349874861,1737473458812,-500.0,0.00020962,7]
[349874862,1737473458822,-500.0,0.00020962,2]
[349874863,1737473458831,-1558.1,0.00020962,2]
[349874864,1737473458840,-1081.56,0.00020962,2]
[349874865,1737473458849,-4278.12,0.00020962,2]
[349874866,1737473458859,-1504.83,0.00020962,2]
[349874867,1737473458868,-500.0,0.00020962,2]
[349874868,1737473458878,-830.43,0.00020962,2]
[349874869,1737473458887,-879.22,0.00020962,2]
[349874870,1737473458896,-500.0,0.00020962,2]
[349874871,1737473458906,-151.0,0.00020962,2]
[349874872,1737473458916,-574.82,0.00020962,2]
[349874873,1737473458925,-500.0,0.00020962,2]
[349874874,1737473458935,-151.0,0.00020962,2]
[349874875,1737473458945,-612.07,0.00020962,2]
[349874876,1737473458955,-500.0,0.00020962,2]
[349874877,1737473458966,-2201.27,0.00020962,2]
[349874878,1737473458976,-500.0,0.00020962,2]
[349874879,1737473458987,-1519.29,0.00020962,2]
[349874880,1737473458997,-151.0,0.00020962,2]
[349874881,1737473459010,-604.2,0.00020962,2]
[349874882,1737473459023,-151.0,0.00020962,2]
[349874883,1737473459035,-842.48,0.00020962,2]
[349874884,1737473459045,-500.0,0.00020962,2]
[349874885,1737473459055,-557.74,0.00020962,2]
[349874886,1737473459065,-1382.98,0.00020962,2]
[349874887,1737473459075,-500.0,0.00020962,2]
[349874888,1737473459085,-514.86278,0.00020962,2]
[349874889,1737473459095,-777.964969,0.00020962,2]
[349874890,1737473459105,-1064.96,0.00020962,2]
[349874891,1737473459115,-514.86278,0.00020962,2]
[349874892,1737473459125,-500.0,0.00020962,2]
[349874893,1737473459135,-777.964969,0.00020962,2]
[349874894,1737473459145,-500.0,0.00020962,2]
[349874895,1737473459155,-151.0,0.00020962,2]
[349874896,1737473459164,-500.0,0.00020962,2]
[349874897,1737473459174,-1210.77,0.00020962,2]
[349874898,1737473459185,-500.0,0.00020962,2]
[349874899,1737473459194,-891.46,0.00020962,2]
[349874900,1737473459204,-500.0,0.00020962,2]
[349874901,1737473459213,-500.0,0.00020962,2]
[349874902,1737473459223,-500.0,0.00020962,2]
[349874903,1737473459233,-151.0,0.00020962,2]
[349874904,1737473459243,-500.0,0.00020962,2]
[349874905,1737473459253,-500.0,0.00020962,2]
[349874906,1737473459263,-1000.0,0.00020962,2]
[349874907,1737473459272,-500.0,0.00020962,2]
[349874908,1737473459283,-500.0,0.00020962,2]
[349874909,1737473459293,-1185.76,0.00020962,2]
[349874910,1737473459303,-500.0,0.00020962,2]
[349874911,1737473459312,-500.0,0.00020962,2]
[349874912,1737473459323,-1985.84,0.00020962,2]
[349874913,1737473459332,-566.55,0.00020962,2]
[349874914,1737473459341,-500.0,0.00020962,2]
[349874915,1737473459351,-1080.53,0.00020962,2]
[349874916,1737473459361,-525.85,0.00020962,2]
[349874917,1737473459370,-500.0,0.00020962,2]
[349874918,1737473459379,-1470.2,0.00020962,2]
[349874919,1737473459389,-500.0,0.00020962,2]
[349874920,1737473459399,-500.0,0.00020963,2]
[349874921,1737473459409,-500.0,0.00020963,2]
[349874922,1737473459419,-500.0,0.00020963,2]
[349874923,1737473459429,-500.0,0.00020963,2]
[349874924,1737473459440,-500.0,0.00020963,2]
[349874925,1737473459449,-500.0,0.00020963,2]
[349874926,1737473459459,-500.0,0.00020963,2]
[349874927,1737473459469,-500.0,0.00020963,2]
[349874928,1737473459480,-500.0,0.00020963,2]
[349874929,1737473459490,-500.0,0.00020963,2]
[349874930,1737473459500,-607.2,0.00020963,2]
[349874931,1737473459510,-500.0,0.00020963,2]
[349874932,1737473459520,-500.0,0.00020963,2]
[349874933,1737473459531,-500.0,0.00020963,2]
[349874934,1737473459541,-500.0,0.00020963,2]
[349874935,1737473459551,-500.0,0.00020963,2]
[349874936,1737473459561,-500.0,0.00020963,2]
[349874937,1737473459571,-500.0,0.00020963,2]
[349874938,1737473459581,-500.0,0.00020963,2]
[349874939,1737473459591,-500.0,0.00020963,2]
[349874940,1737473459601,-500.0,0.00020963,2]
[349874941,1737473459610,-500.0,0.00020963,2]
[349874942,1737473459620,-262.99466134,0.00020963,2]
[349874943,1737473459629,-175.49556184,0.00020963,2]
[349874944,1737473459639,-500.0,0.00020963,2]
[349874945,1737473459649,-500.0,0.00020963,2]
[349874946,1737473459659,-500.0,0.00020963,2]
[349874947,1737473459669,-500.0,0.00020963,2]
[349874948,1737473459678,-500.0,0.00020963,2]
[349874949,1737473459688,-192.12,0.00020963,2]
[349874950,1737473459697,-500.0,0.00020963,2]
[349874951,1737473459706,-600.6,0.00020963,2]
[349874952,1737473459716,-500.0,0.00020963,2]
[349874953,1737473459726,-500.0,0.00020963,2]
[349874954,1737473459735,-547.61,0.00020963,2]
[349874955,1737473459745,-500.0,0.00020963,2]
[349874956,1737473459755,-500.0,0.00020963,2]
[349874957,1737473459765,-500.0,0.00020963,2]